Cogmind - Beta 16 @@@ ROGUE MODE // 2026.01.10 @ 18:04:31 Player: Volvedor Result: Self-destructed Performance ------------- Evolutions (2) 1000 Regions Visited (4) 800 Robots Destroyed (28) 140 Value Destroyed (712) 712 Prototype IDs (0) 0 Alien Tech Used (0) 0 Bonus (0) 0 TOTAL SCORE: 2652 Bonus ------- None Cogmind --------- Core Integrity 392/550 Matter 300/300 Energy 117/160 System Corruption 0% Temperature Cool (0) Movement Walking (120) Location -8/Materials Parts ------- > --- POWER (1) -------- Light Nuclear Core > --- PROPULSION (3) --- Aluminum Leg Aluminum Leg Aluminum Leg > --- UTILITY (5) ------ Improved Heat Sink Improved Sensor Array Salvage Targeting Computer ECM Suite > --- WEAPON (2) ------- Ion Cannon > --- INVENTORY (5) ---- (None) Peak State ------------ > --- POWER ------------ Light Nuclear Core > --- PROPULSION ------- Aluminum Leg Carbon-fiber Leg Carbon-fiber Leg > --- UTILITY ---------- Improved Sensor Array Improved Terrain Scanner Salvage Targeting Computer ECM Suite > --- WEAPON ----------- Ion Cannon Light Assault Rifle > --- INVENTORY -------- (None) [Rating: 23] Favorites ----------- Power Ion Engine Engine Ion Engine Power Core Light Nuclear Core Propulsion Flight Unit Treads Advanced Treads Leg Carbon-fiber Leg Wheel Wheel Hover Unit Hover Unit Flight Unit Flight Unit Utility ECM Suite Device ECM Suite Storage Small Matter Pod Processor Salvage Targeting Computer Weapon Beam Cannon Energy Gun Small Laser Energy Cannon Beam Cannon Ballistic Gun Light Assault Rifle Launcher Rocket Launcher Build | -11 -10 -9 -9 -8 ------- Run | Yrd Mat Mat Min Mat Slots Evolved 4 | . . 2 . 2 Power . | . . . . . Propulsion 1 | . . . . 1 Utility 3 | . . 2 . 1 Weapon . | . . . . . Parts Attached 35 | 7 5 2 6 15 Power 5 | 1 1 . 1 2 Engine 3 | 1 1 . 1 . Core 2 | . . . . 2 Reactor . | . . . . . Propulsion 15 | 2 2 2 2 7 Treads 1 | . . . . 1 Leg 6 | . . . . 6 Wheel 2 | 2 . . . . Hover 2 | . . 2 . . Flight 4 | . 2 . 2 . Utility 9 | 2 1 . 2 4 Device 6 | 2 1 . . 3 Storage 1 | . . . . 1 Processor 2 | . . . 2 . Hackware . | . . . . . Protection . | . . . . . Artifact . | . . . . . Weapon 6 | 2 1 . 1 2 Energy Gun 1 | 1 . . . . Energy Cannon 2 | . 1 . . 1 Ballistic Gun 2 | 1 . . . 1 Ballistic Cannon . | . . . . . Launcher 1 | . . . 1 . Special Weapon . | . . . . . Impact Weapon . | . . . . . Slashing Weapon . | . . . . . Piercing Weapon . | . . . . . Special Melee Weapon . | . . . . . Unidentified Prototypes . | . . . . . Parts Lost 16 | . 1 2 1 12 Power 3 | . . . 1 2 Propulsion 7 | . 1 2 . 4 Utility 3 | . . . . 3 Weapon 3 | . . . . 3 Highest Loss Streak 7 | . 1 1 1 7 To Critical Strikes . | . . . . . Average Backups 2 | 3 4 5 3 . Power . | . 1 1 . . Propulsion . | 1 2 . . . Utility . | . . 2 1 . Weapon . | . 1 2 1 . Tool/Special . | . . . . . Unused Backups 4 | . 3 . 1 . Power . | . . . . . Propulsion 3 | . 3 . . . Utility . | . . . . . Weapon 1 | . . . 1 . Tool/Special . | . . . . . Average Slot Usage (%) 72 | . 92 54 75 71 Engine 9 | . 14 11 9 6 Treads 1 | . . . . 2 Leg 4 | . . . . 11 Wheel 3 | . 14 . . . Hover 2 | . . . 15 . Flight 6 | . 12 10 6 2 Device 23 | . 28 22 22 21 Processor 6 | . . . 4 15 Energy Cannon 7 | . 10 11 11 2 Ballistic Gun 4 | . 8 . . 6 Launcher 1 | . . . 7 . Peak Build Rating 23 | 9 9 6 12 23 Average Rating 9 | 5 6 4 8 14 On Entrance 6 | . 9 6 6 12 Avg Prop Armor Cover (%) . | . . . . . Naked Turns . | . . . . . Heaviest Build 16 | 8 13 11 15 16 Greatest Support 40 | 20 20 12 12 40 Greatest Overweight (x) 3 | . 3 3 1 3 Average Overweight (x) . | . . 1 . . Largest Inventory Capacity 5 | 5 5 5 5 5 Average Capacity 5 | 5 5 5 5 5 Most Carried 5 | 4 5 5 5 1 Average Carried 2 | 3 4 5 3 . Final Capacity 5 | 5 5 5 5 5 Final Carried 5 | 4 5 5 1 . Class Distribution -------------------- 87% | Mutant 12% | Scavenger-Mutant Dominant Class ---------------- Mutant | -10/Materials Mutant | -9/Materials Mutant | -9/Mines Mutant | -8/Materials Resources | -11 -10 -9 -9 -8 ----------- Run | Yrd Mat Mat Min Mat Matter Collected 638 | 291 66 10 52 219 Remotely . | . . . . . Salvage Created 839 | 98 105 114 122 400 Parts 57 | 7 10 4 17 19 Haulers Intercepted . | . . . . . Recyclers Shooed . | . . . . . Parts Field Recycled . | . . . . . Retrieved Matter . | . . . . . Parts Self-Destructed . | . . . . . Prevented . | . . . . . Parts Restored . | . . . . . Kills | -11 -10 -9 -9 -8 ------- Run | Yrd Mat Mat Min Mat Combat Hostiles Destroyed 22 | . 4 3 9 6 Guns 2 | . 1 . . 1 Cannons 9 | . 3 3 1 2 AOE 10 | . . . 8 2 Classes Destroyed 6 | 2 2 . . 2 Worker 1 | . . . . 1 Builder 1 | . . . . 1 Tunneler 2 | 2 . . . . Recycler 2 | 1 . . . 1 Swarmer 8 | . 2 . 6 . Grunt 14 | . 2 3 3 6 Best Kill Streak 6 | 3 4 2 6 4 Combat Bots Only 6 | . 4 2 6 3 Max Kills in Single Turn 5 | 1 1 1 5 2 Gunslinging . | . . . . . Exploded 5 | . . . 5 2 Melee . | . . . . . Uniques/NPCs Destroyed . | . . . . . Combat | -11 -10 -9 -9 -8 -------- Run | Yrd Mat Mat Min Mat Hostile Shots Fired 134 | . 14 25 12 83 Missed 39 | . 3 6 5 25 Hits 95 | . 11 19 7 58 Projectile 95 | . 11 19 7 58 Critical Strikes 5 | . 1 . 1 3 Damage Taken 1369 | . 120 192 156 901 Core 248 | . 34 34 22 158 Absorbed by Shields . | . . . . . Core Remaining (%) 90 | 100 86 . 86 . Volleys Fired 69 | 7 12 7 5 38 Largest 2 | 2 2 1 2 2 Hottest 93 | 60 80 60 93 93 Shots Fired 99 | 14 24 7 10 44 Gun 44 | 14 12 . . 18 Cannon 49 | . 12 7 5 25 Launcher 6 | . . . 5 1 Special . | . . . . . Kinetic 37 | 7 12 . . 18 Thermal 56 | 7 12 7 5 25 Explosive 6 | . . . 5 1 Electromagnetic . | . . . . . Robot Hit Streak 7 | 4 6 7 5 5 Robot Miss Streak 4 | 2 4 . 3 4 Penetration Max . | . . . . . Secondary Targets . | . . . . . Shots Hit Robots 58 | 9 13 7 5 24 Core Hits 39 | 4 6 3 8 18 Critical Kills . | . . . . . Critical Parts Destroyed . | . . . . . Critical Strikes . | . . . . . Melee Attacks . | . . . . . Impact . | . . . . . Slashing . | . . . . . Piercing . | . . . . . Sneak Attacks . | . . . . . Combat Hostiles . | . . . . . Follow-up Attacks . | . . . . . Damage Inflicted 1767 | 136 205 123 558 745 Guns 297 | 136 45 . . 116 Cannons 557 | . 160 123 52 222 Explosions 913 | . . . 506 407 Melee . | . . . . . Ramming . | . . . . . Kinetic 240 | 79 45 . . 116 Thermal 818 | 57 160 123 52 426 Explosive 709 | . . . 506 203 Electromagnetic . | . . . . . Impact . | . . . . . Slashing . | . . . . . Piercing . | . . . . . Highest Corruption . | . . . . . Average Corruption . | . . . . . Corruption Purged . | . . . . . Corruption Blocked . | . . . . . Overload Shots . | . . . . . Overflow Damage 53 | . . 6 33 14 Projectiles 6 | . . 6 . . Explosions 47 | . . . 33 14 Melee . | . . . . . Knockbacks . | . . . . . Impact . | . . . . . Kinetic . | . . . . . Secondary . | . . . . . Self-Inflicted Damage 125 | . . . 80 45 Shots 3 | . . . 2 1 Rammed . | . . . . . Targets Rammed . | . . . . . Kicked . | . . . . . Crushed . | . . . . . Highest Temperature 186 | . 123 88 177 186 Average Temperature 70 | . 42 40 87 93 Received Heat Transfer 693 | . 66 66 57 504 Siege Activations . | . . . . . Martial Activations . | . . . . . Shielding Activations . | . . . . . Robots Disrupted . | . . . . . Combat Hostiles . | . . . . . Robots Corrupted . | . . . . . Combat Hostiles . | . . . . . Parts Fried . | . . . . . Impact Corruptions . | . . . . . Robots Melted 1 | . . . . 1 Combat Hostiles 1 | . . . . 1 Parts Melted 2 | . . 2 . . Heat Transferred 1298 | 125 333 259 111 470 Parts Sabotaged . | . . . . . Parts Stolen . | . . . . . Parts Stripped . | . . . . . Power Chain Reactions . | . . . . . Alert | -11 -10 -9 -9 -8 ------- Run | Yrd Mat Mat Min Mat Maximum Alert Level . | . . . . . Low Security (%) 100 | 100 100 100 100 100 Level 1 . | . . . . . Level 2 . | . . . . . Level 3 . | . . . . . Level 4 . | . . . . . Level 5 . | . . . . . High Security . | . . . . . Max Security . | . . . . . Peak Influence 198 | 10 81 30 198 141 Initial 65 | . 3 . . 65 Average 33 | 2 22 5 110 36 Influence Increases 669 | 15 101 82 243 228 Destroy 0b10 Robot/C 440 | . 80 60 180 120 Destroy 0b10 Robot/NC 30 | 15 . . . 15 Destroy Leader 70 | . 20 10 30 10 Successful Hack 12 | . . 12 . . Disable Machine 30 | . . . . 30 Destroy Structure 57 | . 1 . 33 23 Lose Combat Pursuer 30 | . . . . 30 Influence Decreases 668 | 10 106 82 75 395 Entered New Map 105 | . 2 . . 103 Time Decay 454 | 10 94 70 65 215 Lost Part 109 | . 10 12 10 77 Squads Dispatched 2 | . . 1 . 1 Investigation . | . . . . . Extermination . | . . . . . Reinforcement 2 | . . 1 . 1 Assault . | . . . . . Garrison . | . . . . . Intercept . | . . . . . Searches Triggered . | . . . . . Construction Impeded . | . . . . . Haulers Reinforced . | . . . . . Active Scanning Responses . | . . . . . Cargo Convoy Interrupts . | . . . . . Stealth | -11 -10 -9 -9 -8 --------- Run | Yrd Mat Mat Min Mat Distress Signals 3 | . . 2 . 1 Communications Jammed . | . . . . . Distress Signals . | . . . . . Times Spotted 49 | . 8 7 9 25 Peak Tracking Total 6 | . 3 6 6 6 Tactical Retreats 6 | . 2 1 . 3 ECM-based Alert Blocks 10 | . 3 4 . 3 Traps | -11 -10 -9 -9 -8 ------- Run | Yrd Mat Mat Min Mat Traps Triggered . | . . . . . Indirectly . | . . . . . Trap Hack Attempts . | . . . . . Triggered . | . . . . . Disarmed . | . . . . . Reprogrammed . | . . . . . Reused . | . . . . . Traps Extracted . | . . . . . Installed . | . . . . . Triggered . | . . . . . Machines | -11 -10 -9 -9 -8 ---------- Run | Yrd Mat Mat Min Mat Machines Disabled 2 | . . . . 2 Max in Single Turn 2 | . . . . 2 Machines Repaired . | . . . . . Machines Dismantled . | . . . . . Machines Sabotaged . | . . . . . Overloaded Fab Kills . | . . . . . Hacking | -11 -10 -9 -9 -8 --------- Run | Yrd Mat Mat Min Mat Machines Accessed 3 | . 1 1 . 1 Terminals . | . . . . . Fabricators . | . . . . . Repair Stations . | . . . . . Recycling Units 1 | . 1 . . . Scanalyzers 2 | . . 1 . 1 Garrison Access . | . . . . . Total Hacks 5 | . 1 1 . 3 Successful 2 | . . 1 . 1 Failed 2 | . 1 . . 1 Catastrophic . | . . . . . Database Lockouts 1 | . . . . 1 Manual . | . . . . . Terminals . | . . . . . Fabricators . | . . . . . Repair Stations . | . . . . . Recycling Units 1 | . 1 . . . Scanalyzers 4 | . . 1 . 3 Garrison Access . | . . . . . Terminal Hacks . | . . . . . Fabricator Hacks . | . . . . . Repair Station Hacks . | . . . . . Recycling Unit Hacks . | . . . . . Scanalyzer 2 | . . 1 . 1 Retrieve Study 2 | . . 1 . 1 Garrison Access Hacks . | . . . . . Unauthorized Hacks . | . . . . . Terminals . | . . . . . Fabricators . | . . . . . Repair Stations . | . . . . . Recycling Units . | . . . . . Scanalyzers . | . . . . . Garrison Access . | . . . . . Data Cores Recovered . | . . . . . Used . | . . . . . Hacking Detections 1 | . . . . 1 Full Trace Events . | . . . . . Feedback Events . | . . . . . Feedback Blocked . | . . . . . Robot Schematics Acquired . | . . . . . Robots Built . | . . . . . Authchips . | . . . . . Time . | . . . . . Total Robot Build Rating . | . . . . . Part Schematics Acquired . | . . . . . Parts Built . | . . . . . Authchips . | . . . . . Time . | . . . . . Total Part Build Rating . | . . . . . Part Studies Acquired 2 | . . 1 . 1 Parts Repaired . | . . . . . Time . | . . . . . Parts Recycled . | . . . . . Recycled Matter . | . . . . . Retrieved Matter . | . . . . . Retrieved Components . | . . . . . Parts Scanalyzed . | . . . . . Part Schematics Acquired . | . . . . . Parts Damaged . | . . . . . Bothacking | -11 -10 -9 -9 -8 ------------ Run | Yrd Mat Mat Min Mat Used RIF Installer . | . . . . . Robots Hacked . | . . . . . Non-combat . | . . . . . Combat . | . . . . . Robot Hacks Applied . | . . . . . Relay Couplers Released . | . . . . . Fabnet Peak Effective % . | . . . . . Robots Rewired . | . . . . . Allies Hacked . | . . . . . Hacks Repelled . | . . . . . Allies | -11 -10 -9 -9 -8 -------- Run | Yrd Mat Mat Min Mat Total Allies . | . . . . . Largest Group . | . . . . . Highest-Rated Group . | . . . . . Highest-Rated Ally . | . . . . . Total Orders . | . . . . . Ally Attacks . | . . . . . Total Damage . | . . . . . Kills . | . . . . . Allies Corrupted . | . . . . . Allies Melted . | . . . . . Intel | -11 -10 -9 -9 -8 ------- Run | Yrd Mat Mat Min Mat Active Infowar (turns) 1544 | 19 346 354 192 633 Sensors 210 | . . . . 210 Terrain 110 | 19 50 . . 41 Seismic 1336 | 4 346 354 192 440 ECM 1240 | . 296 354 141 449 Robot Analysis Total . | . . . . . Derelict Logs Recovered . | . . . . . Drone Launches . | . . . . . Drone Recoveries . | . . . . . Exploration | -11 -10 -9 -9 -8 ------------- Run | Yrd Mat Mat Min Mat Turns Passed 1602 | 77 346 354 192 633 Spaces Moved 943 | 54 274 138 156 321 Core 39 | 3 . 31 . 5 Treads 114 | . . . . 114 Legs 154 | . . . . 154 Wheels 197 | 51 146 . . . Hover 149 | . . 9 140 . Flight 290 | . 128 98 16 48 Fastest Speed 37 | 50 80 56 37 117 Average Speed 114 | 78 99 168 76 129 Slowest Speed 280 | 80 280 200 120 200 Overloaded Moves . | . . . . . Propulsion Burnouts . | . . . . . Robots Hopped . | . . . . . Potential Cave-ins . | . . . . . Cave-ins Triggered . | . . . . . Exploration Rate (%) 23 | 4 37 15 34 25 Regions Visited 4 Branch Regions 1 Pre-discovered Areas . | . . . . . Known Exits Taken . | . . . . . Unknown Exits Taken 4 | 1 1 1 1 . Scrap Searched . | . . . . . Spaces Dug . | . . . . . Terrain Destroyed 67 | . . . 41 26 Melee . | . . . . . Projectile 1 | . . . . 1 AOE 66 | . . . 41 25 Terrain Rammed . | . . . . . Walls Destroyed . | . . . . . Machines Disabled . | . . . . . Actions | -11 -10 -9 -9 -8 --------- Run | Yrd Mat Mat Min Mat Total 1356 | 71 324 250 220 491 Wait 289 | . 22 104 50 113 Move 939 | 53 273 137 155 321 Hop . | . . . . . Pick Up 10 | 4 4 . 1 1 Fast Attach 28 | 7 4 2 2 13 Attach 6 | . . . 4 2 Detach . | . . . . . Swap 1 | . 1 . . . Drop 14 | . 8 . 3 3 Fire 69 | 7 12 7 5 38 Melee . | . . . . . Ram . | . . . . . Kick . | . . . . . Crush . | . . . . . Escape Stasis . | . . . . . Rewire . | . . . . . Trap . | . . . . . Miscellaneous . | . . . . . Route ------- -11/Scrapyard -10/Materials -9/Materials -9/Mines -8/Materials History --------- Turn | Location | Event 12 | -11/Scrapyard | Discovered new exit (range 15) 78 | -11/Scrapyard | Entered Materials 293 | -10/Materials | Discovered new exit (range 16) 424 | -10/Materials | Entered another Materials area 424 | -9/Materials | Evolved 2 slots: Utility x2 728 | -9/Materials | Discovered new exit (range 13) 754 | -9/Materials | Build established: Mutant 778 | -9/Materials | Entered Mines 785 | -9/Mines | Received a Rocket Launcher from a helpful Derelict 786 | -9/Mines | Met a Derelict bent on vengeance 918 | -9/Mines | Discovered new exit (range 5) 970 | -9/Mines | Entered Materials 970 | -8/Materials | Evolved 2 slots: Propulsion x1, Utility x1 1095 | -8/Materials | Lost 3 parts (1n2w) 1242 | -8/Materials | Central database locked down 1558 | -8/Materials | Lost 7 parts (1p3n2u1w) 1603 | -8/Materials | Self-destructed Last Messages --------------- 01506_ G-47 Trooper destroyed. 01510_ Carbon-fiber Leg destroyed. 01516_ Aluminum Leg destroyed. 01518_ Lgt. Nuclear Core destroyed. 01523_ G-47 Trooper heat damages Imp. Heat Sink. 01524_ Carbon-fiber Leg destroyed. 01526_ R-06 Scavenger destroyed. 01527_ Imp. Terrain Scanner destroyed. 01534_ G-47 Trooper heat spikes uncontrollably. 01535_ G-47 Trooper overheating. 01536_ Acquired Imp. Heat Sink. 01537_ G-47 Trooper overheating. 01539_ Acquired Aluminum Leg. 01541_ G-47 Trooper heat damages core (-6). 01543_ Acquired 20 matter. 01550_ U-05 Engineer builds a Door. 01569_ Acquired Aluminum Leg. 01581_ Acquired 20 matter. 01583_ Acquired Lgt. Nuclear Core. 01585_ Acquired 10 matter. Map ----- +----------------------------------------------------+ | "???????????????????????????????????????????????? | | "T" ???????????????????????????????????????????? | | ??? +?????????????????????????????????????? | | "?? #???????? ?????????????????????????? | | """ ]#???????? ??????????????????????? | | """ #???????# #????????????????????? | | #???????# #????????????????????? | | #???????# #????????????????????? | | """ """ #???????# #????????????????????? | | """ """ ##??????# #????????????????????? | | """ """ #??????# #????????????????????? | | #??????# #????????????????????? | | #??????# #????????????????????? | | #??????# #????????????????????? | | #??????# +????????????????????? | | ## #????### #????????????????????? | | ## #????# #????????????????????? | | # #####/######### #????????????????????? | | # # / k k #????????????????????? | | # # """ ###### #????????????????????? | | # + """ #????# ##+########???????????????? | | # # """ #????# ##!=!= #???????????????? | | # # #??#?# # %""" #???????????????? | | ## # """ #????#]]!!!!#s "" #???????????????? | | # # """ #????#]]!!!!sss""" #???????????????? | | # # """ #????########@ ["" #???????????????? | | # + #???????????# "" #???????????????? | | # ###/######???????????# #???????????????? | | # #?# #?????????????#??# #???????????????? | | # ??# #????????????????# #???????????????? | | ##+###+#####?????????#??##########???????????????? | | ?# #????????????#????????????????????????? | | ## ""=" %=#?????????????????????????????????????? | | # """" #?????????????#???????????????????????? | | # """" #?????????????????????????????????????? | | + #??????#??????????????????????????????? | | # #?#???????????????????????????????????? | | # #?????????????????????????????????????? | | ## #?????????????????????????????????????? | | ############??#??????????????????????????????????? | | # ##??????????????????????????????????????? | | # " #???#??????????????????????????????????? | | # ##?????#???????????????????????????????? | | " = #?????????????????????????????????????? | | " *%! =[% #?#???????????????????????????????????? | | " #?????????????????????????????????????? | | #?????????????????????????????????????? | | " ! # #??? ?????????????????????????????????? | | # ###?????????????????????????????????????? | | #""""""#/##??????????????????????????????????????? | +----------------------------------------------------+ Best States ------------- Heat Dissipation 45 Energy Generation 14 Energy Capacity 250 Matter Stores 349 Matter Capacity 350 Sight Range 16 Robot Scan Range 15 Terrain Scan Range 16 Terrain Scan Density 10 ECM Strength 1 Evasion (%) 55 Recoil Reduction 1 Salvage Targeting 2 Item Schematics ----------------- None Robot Schematics ------------------ None Fabricated ------------ Nothing Repaired ---------- Nothing Studied --------- Flight Unit | -9/Materials | Hacked Adv. Treads | -8/Materials | Hacked Alien Tech Used ----------------- None Achievements -------------- Universal Adapter Challenges ------------ None Game ------ Seed TransmissionNullImmobilizer Manual? 0 Play Time 00:14:02 Cumulative 41.6 hours Start 2026.01.10 @ 17:51:16 End 2026.01.10 @ 18:04:31 Sessions 1 Manual Loads 0 Difficulty Rogue Special Mode None Game No. 46 Rogue 46 Adventurer 0 Explorer 0 Win Type - Total 0 Types 0/0/0/0/0/0/0/0/0/0 Lore% 28 Gallery% 25 Achievement% 18 Wizard Run 0 Options --------- Layout 2 ASCII 0 Keyboard 0 Movement Mouse Keybinds 0 Fullscreen 1 Font 16/TerminusCaps Map View 27x23 Zoom Use 100% Tactical HUD 1 Map Filters NONE Filters NONE Steam 1 RUN: ae07c24d-a9e3-4a93-955b-d8ffe5eea845